bitfinex/quotes_SOLUSD_20250102
["timestamp","ask_amount","ask_price","bid_price","bid_amount"]
[1735831030569,20.02447431,207.85,207.77,20.02447431]
[1735831031204,20.02447431,207.85,207.78,0.37647]
[1735831031393,20.02447431,207.89,207.82,0.12549]
[1735831031804,20.02447431,207.89,207.81,20.02447431]
[1735831032218,20.02447431,207.89,207.82,0.12549]
[1735831032522,20.0,207.92,207.82,0.12549]
[1735831032523,20.02447431,207.87,207.82,0.12549]
[1735831034128,20.02447431,207.89,207.82,0.12549]
[1735831034332,20.02447431,207.95,207.88,20.02447431]
[1735831034537,20.02447431,207.93,207.86,7.85339]
[1735831034999,12.0213,207.97,207.86,7.85339]
[1735831035000,20.02447431,207.91,207.86,7.85339]
[1735831035194,20.02447431,207.93,207.86,7.85339]
[1735831036322,20.02447431,207.91,207.86,7.85339]
[1735831037017,20.02447431,207.93,207.86,7.85339]
[1735831037223,20.02447431,207.95,207.88,0.12549]
[1735831037537,20.02447431,207.95,207.9,0.12549]
[1735831038501,20.02447431,207.92,207.86,7.7279]
[1735831038916,20.02447431,207.94,207.87,0.37647]
[1735831039120,20.02447431,207.95,207.89,0.37647]
[1735831040426,20.02447431,207.93,207.86,27.75237431]
[1735831040609,20.02447431,207.94,207.87,0.37647]
[1735831042321,23.776884,207.97,207.87,0.37647]
[1735831042624,20.02447431,207.93,207.87,0.12549]
[1735831042810,20.02447431,207.95,207.89,0.37647]
[1735831043626,20.02447431,207.96,207.89,0.37647]
[1735831043806,25.6631,208.04,207.89,20.40094431]
[1735831043807,20.02447431,207.97,207.89,20.40094431]
[1735831044011,20.02447431,208.02,207.95,20.40094431]
[1735831044223,20.02447431,208.05,207.98,0.12549]
[1735831044401,20.02447431,208.06,207.98,20.40094431]
[1735831044596,20.02447431,208.06,208.0,0.12549]
[1735831044822,20.0,208.08,208.0,0.12549]
[1735831045635,43.776884,208.07,207.97,7.7091]
[1735831045812,20.02447431,208.01,207.97,7.7091]
[1735831046706,20.02447431,208.0,207.97,7.7091]
[1735831047408,20.02447431,208.01,207.97,7.7091]
[1735831047609,20.02447431,207.99,207.92,28.18097431]
[1735831048095,20.02447431,208.03,207.97,0.37647]
[1735831048301,6.58373745,208.17,207.99,0.37647]
[1735831048502,20.02447431,208.08,208.01,20.40094431]
[1735831049027,20.02447431,208.07,208.01,0.37647]
[1735831049230,20.02447431,208.08,208.01,0.37647]
[1735831049521,20.02447431,208.06,208.01,0.37647]
[1735831049729,20.02447431,208.07,208.01,0.37647]
[1735831049912,20.02447431,208.06,208.01,0.37647]
[1735831050421,20.02447431,208.04,207.96,20.02447431]
[1735831051307,20.02447431,208.04,207.97,0.37647]
[1735831051501,20.02447431,208.03,207.97,0.37647]
[1735831051706,20.02447431,208.02,207.95,20.02447431]
[1735831051926,20.02447431,207.99,207.92,28.18097431]
[1735831052828,20.02447431,207.99,207.93,0.37647]
[1735831053323,20.02447431,208.0,207.93,0.37647]
[1735831054026,20.02447431,208.02,207.95,20.40094431]
[1735831054629,20.02447431,208.0,207.95,0.37647]
[1735831054823,20.02447431,208.01,207.95,0.37647]
[1735831057922,20.02447431,208.05,207.98,0.37647]
[1735831058533,20.02447431,208.04,207.98,0.37647]
[1735831059111,20.02447431,208.02,207.98,0.37647]
[1735831060131,20.02447431,208.02,207.94,20.02447431]
[1735831060627,20.02447431,208.0,207.92,28.18097431]
[1735831060927,20.02447431,208.04,207.97,0.37647]
[1735831061727,20.02447431,208.04,207.97,20.40094431]
[1735831061929,20.02447431,208.06,207.99,0.37647]
[1735831062129,12.0141,208.09,207.99,20.40094431]
[1735831062130,20.02447431,208.07,207.99,20.40094431]
[1735831062309,20.02447431,208.06,207.99,0.37647]
[1735831062931,20.02447431,208.05,207.99,0.37647]
[1735831063317,20.02447431,208.1,207.96,20.02447431]
[1735831063318,20.02447431,208.04,207.96,20.02447431]
[1735831063526,20.02447431,208.02,207.95,20.74543135]
[1735831063712,20.02447431,207.99,207.92,28.18097431]
[1735831063915,20.02447431,207.98,207.92,8.1565]
[1735831064124,20.02447431,207.99,207.92,28.18097431]
[1735831064324,20.02447431,208.0,207.93,20.02447431]
[1735831064520,20.02447431,207.99,207.94,0.37647]
[1735831064727,20.02447431,207.99,207.92,8.1565]
[1735831064917,20.02447431,207.96,207.92,8.1565]
[1735831065117,43.776884,208.01,207.92,8.1565]
[1735831065332,20.02447431,207.93,207.87,7.7654]
[1735831065535,20.02447431,207.9,207.87,7.7654]
[1735831065836,23.776884,207.99,207.82,6.6505]
[1735831065837,20.02447431,207.88,207.82,6.6505]
[1735831066007,20.02447431,207.87,207.82,6.6505]
[1735831066214,20.02447431,207.87,207.83,0.37647]
[1735831066835,20.02447431,207.88,207.82,6.6505]
[1735831067437,20.02447431,207.89,207.82,26.67497431]
[1735831067614,20.02447431,207.89,207.83,0.37647]
[1735831067822,20.02447431,207.88,207.83,0.37647]
[1735831068024,20.02447431,207.88,207.83,0.25098]
[1735831068318,20.02447431,207.86,207.82,6.6505]
[1735831068528,20.02447431,207.85,207.81,1.5313]
[1735831069011,20.02447431,207.86,207.82,0.12549]
[1735831070023,20.02447431,207.88,207.82,0.37647]
[1735831070443,18.02447431,207.88,207.82,0.37647]
[1735831071744,20.02447431,207.86,207.82,0.12549]
[1735831071914,20.02447431,207.85,207.82,0.12549]
[1735831072118,20.02447431,207.84,207.81,1.5313]
[1735831072313,20.02447431,207.85,207.77,6.358]
[1735831072620,20.02447431,207.86,207.8,0.37647]
[1735831074020,20.02447431,207.86,207.77,6.358]
[1735831074021,20.02447431,207.83,207.77,6.358]
[1735831074521,20.02447431,207.81,207.78,0.12549]
[1735831074920,20.02447431,207.82,207.78,0.12549]
[1735831075236,20.02447431,207.84,207.78,0.12549]
[1735831076643,20.02447431,207.9,207.77,6.358]
[1735831076644,20.02447431,207.81,207.77,6.358]
[1735831077219,20.02447431,207.82,207.77,6.358]
[1735831077442,20.02447431,207.78,207.72,6.2289]
[1735831077618,20.02447431,207.77,207.72,6.2289]
[1735831077820,20.02447431,207.76,207.69,19.273755]
[1735831078021,20.02447431,207.75,207.7,0.12549]
[1735831078320,20.02447431,207.75,207.67,26.25337431]
[1735831078529,20.02447431,207.77,207.7,0.37647]
[1735831078821,23.776884,207.83,207.7,20.40094431]
[1735831079023,20.02447431,207.78,207.7,20.40094431]
[1735831079226,20.02447431,207.77,207.7,20.40094431]
[1735831079526,20.02447431,207.76,207.7,0.37647]
[1735831079947,20.02447431,207.77,207.7,20.40094431]
[1735831080241,20.02447431,207.78,207.7,20.40094431]
[1735831080420,20.02447431,207.81,207.74,20.14996431]
[1735831080627,20.02447431,207.78,207.74,0.12549]
[1735831081251,20.02447431,207.79,207.74,0.12549]
[1735831081635,20.02447431,207.8,207.74,0.12549]
[1735831082965,20.02447431,207.81,207.76,0.12549]
[1735831083170,20.02447431,207.77,207.7,20.02447431]
[1735831083447,23.776884,207.84,207.67,26.25337431]
[1735831083448,20.02447431,207.74,207.67,26.25337431]
[1735831083649,20.02447431,207.73,207.67,6.2289]
[1735831083861,20.0,207.77,207.68,0.12549]
[1735831084070,20.02447431,207.74,207.68,0.12549]
[1735831084484,20.02447431,207.74,207.67,6.2289]
[1735831084957,20.02447431,207.73,207.67,6.2289]
[1735831085135,20.02447431,207.76,207.69,20.40094431]
[1735831085457,20.02447431,207.79,207.71,20.40094431]
[1735831085658,20.02447431,207.78,207.71,0.37647]
[1735831085863,20.02447431,207.78,207.68,20.74650255]
[1735831085864,20.02447431,207.76,207.68,20.74650255]
[1735831086168,20.02447431,207.76,207.68,20.02447431]
[1735831086467,20.02447431,207.76,207.7,0.12549]
[1735831086662,20.02447431,207.75,207.68,0.25098]
[1735831086865,20.02447431,207.75,207.67,26.25337431]
[1735831086866,20.02447431,207.72,207.67,6.2289]
[1735831087173,20.02447431,207.72,207.68,0.12549]
[1735831087341,20.02447431,207.73,207.68,0.12549]
[1735831087536,20.02447431,207.78,207.7,0.12549]
[1735831088275,20.02447431,207.76,207.7,0.12549]
[1735831088456,20.02447431,207.76,207.67,26.25337431]
[1735831088773,20.02447431,207.76,207.68,0.37647]
[1735831088957,20.02447431,207.76,207.7,0.12549]
[1735831090172,20.02447431,207.76,207.7,0.37647]
[1735831090384,20.02447431,207.78,207.7,0.37647]
[1735831090554,20.02447431,207.8,207.72,0.37647]
[1735831091065,20.02447431,207.78,207.72,0.37647]
[1735831091287,20.02447431,207.76,207.67,26.25337431]
[1735831091454,20.02447431,207.74,207.67,26.25337431]
[1735831091884,20.02447431,207.76,207.68,0.25098]
[1735831092388,20.02447431,207.76,207.69,0.12549]
[1735831092857,20.02447431,207.78,207.71,0.12549]
[1735831093286,20.02447431,207.8,207.72,0.25098]
[1735831093658,12.0297,207.82,207.74,0.37647]
[1735831093659,20.02447431,207.82,207.74,0.37647]
[1735831094796,20.02447431,207.84,207.76,0.37647]
[1735831095353,20.02447431,207.84,207.78,0.12549]
[1735831095592,20.02447431,207.84,207.78,0.37647]
[1735831095900,20.02447431,207.86,207.78,0.37647]
[1735831096190,20.02447431,207.84,207.78,0.12549]
[1735831097889,20.02447431,207.84,207.75,1.5368]
[1735831097890,20.02447431,207.8,207.75,1.5368]
[1735831099018,20.02447431,207.84,207.76,0.37647]
[1735831099464,20.02447431,207.84,207.78,0.12549]
[1735831099670,20.02447431,207.84,207.78,0.37647]
[1735831099975,20.02447431,207.86,207.8,0.37647]
[1735831100506,20.02447431,207.88,207.8,0.37647]
[1735831101467,20.02447431,207.84,207.77,20.02447431]
[1735831101667,20.02447431,207.84,207.78,0.37647]
[1735831101907,20.02447431,207.84,207.78,0.12549]
[1735831102078,20.02447431,207.84,207.75,21.56127431]
[1735831102814,20.02447431,207.84,207.78,0.37647]
[1735831104109,20.02447431,207.82,207.75,1.5368]
[1735831104407,12.53313351,207.8,207.75,1.5368]
[1735831105182,12.53313351,207.78,207.75,1.5368]
[1735831106014,12.53313351,207.78,207.76,0.12549]
[1735831106180,12.53313351,207.83,207.76,0.37647]
[1735831106374,20.04754844,207.83,207.76,0.37647]
[1735831106575,20.04754844,207.79,207.76,0.12549]
[1735831106993,20.04754844,207.79,207.72,6.0104]
[1735831107501,20.04754844,207.77,207.72,6.0104]
[1735831108102,20.04754844,207.75,207.7,1.6143]
[1735831108276,12.0318,207.79,207.67,26.11954844]
[1735831108277,20.04754844,207.73,207.67,6.072]
[1735831108774,20.04754844,207.73,207.68,0.12549]
[1735831110903,20.04754844,207.73,207.67,6.072]
[1735831111202,20.04754844,207.71,207.65,1.6143]
[1735831111513,20.04754844,207.69,207.65,1.6143]
[1735831111799,20.04754844,207.67,207.62,6.072]
[1735831112397,20.04754844,207.65,207.62,6.072]
[1735831112776,20.04754844,207.63,207.6,1.6143]
[1735831113090,20.04754844,207.63,207.57,6.4425]
[1735831113295,20.04754844,207.61,207.55,20.833354]
[1735831113502,20.04754844,207.61,207.55,1.5429]
[1735831113696,20.04754844,207.61,207.56,0.12549]
[1735831113899,20.04754844,207.61,207.55,1.5429]
[1735831114395,20.04754844,207.61,207.56,0.12549]
[1735831114599,20.04754844,207.57,207.55,1.5429]
[1735831114905,20.04754844,207.57,207.5,1.538]
[1735831115079,20.04754844,207.57,207.51,0.12549]
[1735831115285,20.04754844,207.57,207.51,0.25098]
[1735831115500,20.04754844,207.57,207.51,0.12549]
[1735831115719,20.04754844,207.57,207.5,1.538]
[1735831117102,12.0415,207.62,207.51,0.12549]
[1735831117282,20.04754844,207.58,207.51,0.12549]
[1735831118213,12.0365,207.7,207.51,40.42401844]
[1735831118385,20.04754844,207.62,207.54,0.37647]
[1735831119003,20.04754844,207.62,207.56,0.12549]
[1735831119214,20.04754844,207.64,207.58,0.37647]
[1735831119529,20.04754844,207.66,207.58,6.40457]
[1735831119678,20.04754844,207.66,207.6,0.37647]
[1735831121428,20.04754844,207.7,207.62,0.37647]
[1735831121814,12.0345,207.74,207.64,0.37647]
[1735831121815,20.04754844,207.72,207.64,0.37647]
[1735831122002,20.04754844,207.72,207.66,0.12549]
[1735831122707,20.04754844,207.74,207.66,0.37647]
[1735831122912,20.04754844,207.74,207.68,0.12549]
[1735831123503,20.04754844,207.74,207.65,20.04754844]
[1735831123715,20.04754844,207.76,207.68,6.60137]
[1735831123913,20.04754844,207.76,207.7,0.37647]
[1735831124118,20.04754844,207.78,207.7,0.37647]
[1735831125619,20.04754844,207.76,207.68,6.2249]
[1735831126134,20.04754844,207.76,207.69,0.12549]
[1735831126299,20.04754844,207.76,207.69,20.17303844]
[1735831126632,20.04754844,207.76,207.7,0.25098]
[1735831126935,20.04754844,207.76,207.69,20.17303844]
[1735831127828,20.04754844,207.76,207.69,0.12549]
[1735831128437,20.04754844,207.76,207.68,26.27244844]
[1735831128836,20.04754844,207.76,207.69,0.12549]
[1735831129208,20.04754844,207.76,207.68,26.27244844]
[1735831129408,20.04754844,207.78,207.71,0.12549]
[1735831129710,20.04754844,207.8,207.73,0.12549]
[1735831130100,20.04754844,207.78,207.73,0.12549]
[1735831131101,20.04754844,207.78,207.72,1.6357]
[1735831131743,20.04754844,207.8,207.73,0.37647]
[1735831132930,20.04754844,207.8,207.73,0.12549]
[1735831133101,20.04754844,207.78,207.73,0.12549]
[1735831134529,20.04754844,207.78,207.72,1.6357]
[1735831135125,20.04754844,207.78,207.73,0.12549]
[1735831136219,12.53424536,207.79,207.73,0.37647]
[1735831136715,12.53424536,207.79,207.73,0.12549]
[1735831137331,12.53424536,207.79,207.72,1.6357]
[1735831137530,12.53424536,207.77,207.72,1.6357]
[1735831140205,12.53424536,207.75,207.68,6.2249]
[1735831140403,12.53424536,207.75,207.69,0.12549]
[1735831141812,12.53424536,207.77,207.69,12.91071536]
[1735831142025,12.53424536,207.79,207.69,12.91071536]
[1735831142944,12.53424536,207.79,207.72,0.37647]
[1735831143107,12.53424536,207.83,207.75,12.53424536]
[1735831143307,12.53424536,207.83,207.76,0.37647]
[1735831143524,12.53424536,207.85,207.78,0.37647]
[1735831143725,12.53424536,207.85,207.78,7.92937]
[1735831144032,12.53424536,207.87,207.8,0.37647]
[1735831144228,12.53424536,207.87,207.8,0.12549]
[1735831144711,12.53424536,207.87,207.8,0.37647]
[1735831145326,12.53424536,207.87,207.78,7.5529]
[1735831145327,12.53424536,207.85,207.78,7.5529]
[1735831146031,12.53424536,207.85,207.79,0.12549]
[1735831147444,12.53424536,207.83,207.78,7.5529]
[1735831147760,32.53424536,207.83,207.75,12.53424536]
[1735831148111,32.53424536,207.83,207.76,0.12549]
[1735831148732,32.53424536,207.83,207.75,0.12549]
[1735831149641,32.53424536,207.83,207.75,12.65973536]
[1735831149847,12.53424536,207.83,207.75,12.65973536]
[1735831150037,12.0284,207.85,207.73,8.1501]
[1735831150038,12.53424536,207.85,207.78,0.12549]
[1735831150516,12.53424536,207.87,207.8,0.12549]
[1735831150832,12.53424536,207.87,207.8,0.37647]
[1735831151325,12.53424536,207.85,207.77,12.53424536]
[1735831151638,12.0263,207.88,207.75,12.53424536]
[1735831151639,12.53424536,207.83,207.75,12.53424536]
[1735831152137,12.53424536,207.83,207.76,0.12549]
[1735831152639,12.53424536,207.83,207.75,12.53424536]
[1735831152846,12.53424536,207.83,207.73,8.1501]
[1735831152847,12.53424536,207.81,207.73,20.68434536]
[1735831153142,12.53424536,207.81,207.74,0.12549]
[1735831153641,12.53424536,207.79,207.73,8.1501]
[1735831154631,12.53424536,207.77,207.73,8.1501]
[1735831155235,12.53424536,207.79,207.74,0.12549]
[1735831155432,12.0289,207.84,207.74,0.12549]
[1735831155433,12.53424536,207.81,207.74,0.12549]
[1735831155922,12.53424536,207.79,207.73,8.1501]
[1735831156918,12.53424536,207.77,207.7,19.278281]
[1735831157235,12.53424536,207.75,207.68,7.9073]
[1735831157542,12.53424536,207.75,207.68,27.185581]
[1735831157711,12.53424536,207.75,207.69,0.12549]
[1735831158135,12.53424536,207.77,207.69,0.12549]
[1735831158338,12.53424536,207.77,207.69,0.37647]
[1735831158537,12.53424536,207.79,207.71,0.37647]
[1735831158841,12.53424536,207.79,207.72,12.53424536]
[1735831159140,12.53424536,207.79,207.73,0.12549]
[1735831159726,12.53424536,207.79,207.72,12.53424536]
[1735831159727,12.53424536,207.79,207.7,12.53424536]
[1735831160142,12.53424536,207.77,207.71,0.12549]
[1735831160641,12.53424536,207.77,207.69,12.78522536]
[1735831160838,12.53424536,207.75,207.68,20.441545]
[1735831161345,12.53424536,207.73,207.69,0.12549]
[1735831162215,12.53424536,207.73,207.68,7.9073]
[1735831162512,12.53424536,207.73,207.69,0.12549]
[1735831162913,12.53424536,207.75,207.69,0.12549]
[1735831163227,12.53424536,207.77,207.69,12.91071536]
[1735831165255,12.0315,207.79,207.69,12.91071536]
[1735831165256,12.53424536,207.79,207.72,0.12549]
[1735831166644,36.0853,207.84,207.69,12.53424536]
[1735831166645,12.53424536,207.77,207.69,12.53424536]
[1735831166825,12.53424536,207.77,207.7,0.37647]
[1735831167350,12.53424536,207.77,207.68,7.9073]
[1735831167351,12.53424536,207.75,207.68,7.9073]
[1735831167548,12.53424536,207.73,207.64,12.53424536]
[1735831167727,12.53424536,207.71,207.62,14.10014536]
[1735831167923,12.53424536,207.71,207.62,26.63439036]
[1735831168822,12.53424536,207.71,207.63,0.12549]
[1735831169578,12.53424536,207.71,207.62,26.63439036]
[1735831169736,24.57064536,207.71,207.62,14.10014536]
[1735831170051,12.53424536,207.69,207.62,14.10014536]
[1735831170422,12.0364,207.71,207.62,1.5659]
[1735831170623,12.53424536,207.64,207.57,14.16224536]
[1735831171250,12.53424536,207.64,207.58,0.12549]
[1735831171464,12.53424536,207.64,207.57,14.16224536]
[1735831172739,12.53424536,207.64,207.58,0.12549]
[1735831172940,12.53424536,207.64,207.57,14.16224536]
[1735831173139,12.0394,207.65,207.57,14.16224536]
[1735831173140,12.53424536,207.62,207.57,1.628]
[1735831174358,12.53424536,207.59,207.52,1.6014]
[1735831174663,12.0394,207.65,207.48,12.53424536]
[1735831174664,12.53424536,207.55,207.48,12.53424536]
[1735831175270,12.53424536,207.55,207.47,1.5258]
[1735831175445,12.53424536,207.57,207.5,12.53424536]
[1735831175768,12.53424536,207.57,207.48,12.53424536]
[1735831175970,12.53424536,207.57,207.49,0.12549]
[1735831176757,12.53424536,207.55,207.48,12.53424536]
[1735831177148,12.53424536,207.55,207.48,0.12549]
[1735831178379,12.53424536,207.53,207.47,1.5258]
[1735831178550,12.53424536,207.51,207.47,1.5258]
[1735831179879,12.53424536,207.51,207.46,6.2506]
[1735831180064,12.53424536,207.51,207.45,7.91776766]
[1735831180643,12.53424536,207.46,207.45,7.91776766]
[1735831182988,36.31112936,207.46,207.45,7.91776766]
[1735831184882,12.53424536,207.46,207.45,7.91776766]
[1735831185284,12.53424536,207.48,207.45,7.91776766]
[1735831185995,12.53424536,207.52,207.45,7.91776766]
[1735831186162,12.53424536,207.53,207.46,7.6986]
[1735831186352,12.53424536,207.54,207.47,12.91071536]
[1735831186556,12.53424536,207.55,207.49,0.25098]
[1735831186791,12.53424536,207.58,207.51,0.12549]
[1735831186962,12.53424536,207.58,207.51,0.25098]
[1735831187871,1.5066,207.63,207.49,12.53424536]
[1735831187872,12.53424536,207.57,207.49,12.53424536]
[1735831188390,12.53424536,207.53,207.48,0.12549]
[1735831188871,12.53424536,207.55,207.47,12.78522536]
[1735831189193,12.0418,207.61,207.5,0.37647]
[1735831189365,12.53424536,207.58,207.5,0.37647]
[1735831189566,12.53424536,207.56,207.5,0.37647]
[1735831190798,32.53424536,207.58,207.52,0.12549]
[1735831191981,32.53424536,207.58,207.5,0.25098]
[1735831191982,32.53424536,207.58,207.51,0.12549]
[1735831192389,44.57834536,207.58,207.49,12.53424536]
[1735831192573,12.53424536,207.56,207.47,12.53424536]
[1735831193300,12.53424536,207.5,207.46,7.6986]
[1735831193462,12.53424536,207.48,207.45,7.91776766]
[1735831194081,20.0,207.46,207.45,7.91776766]
[1735831194281,40.11965812,207.46,207.45,7.91776766]
[1735831197707,40.11965812,207.46,207.35,6.6252]
[1735831197873,20.11965812,207.41,207.35,6.6252]
[1735831198201,20.11965812,207.42,207.35,6.6252]
[1735831199627,20.11965812,207.41,207.35,6.6252]
[1735831200197,20.11965812,207.4,207.35,6.6252]
[1735831200370,20.11965812,207.43,207.35,26.74485812]
[1735831200574,20.11965812,207.41,207.35,6.6252]
[1735831201182,23.776884,207.46,207.31,20.11965812]
[1735831201183,20.11965812,207.38,207.31,20.11965812]
[1735831201381,20.11965812,207.38,207.3,27.82945812]
[1735831201597,20.11965812,207.39,207.31,20.11965812]
[1735831201906,20.11965812,207.38,207.3,27.82945812]
[1735831202594,20.11965812,207.31,207.27,8.18481663]
[1735831202801,20.11965812,207.28,207.27,8.18481663]
[1735831203784,43.89654212,207.28,207.27,8.18481663]
[1735831204006,20.11965812,207.28,207.27,8.18481663]
[1735831204878,20.11965812,207.3,207.27,8.18481663]
[1735831205779,20.11965812,207.32,207.27,8.18481663]
[1735831206184,12.0556,207.38,207.27,8.18481663]
[1735831206185,20.11965812,207.34,207.27,8.18481663]
[1735831206697,20.11965812,207.32,207.27,8.18481663]
[1735831207783,20.11965812,207.28,207.27,8.18481663]
[1735831208785,43.89654212,207.28,207.27,8.18481663]
[1735831210118,20.11965812,207.28,207.27,8.18481663]
[1735831211234,20.0,207.21,207.14,1.6655]
[1735831211437,20.11965812,207.17,207.14,1.6655]
[1735831212103,20.11965812,207.17,207.12,27.38238926]
[1735831212514,20.11965812,207.17,207.12,20.78648926]
[1735831212917,20.11965812,207.15,207.12,20.78648926]
[1735831215006,20.11965812,207.19,207.12,20.78648926]
[1735831215235,20.11965812,207.21,207.13,20.11965812]
[1735831215619,20.11965812,207.19,207.12,20.78648926]
[1735831215821,8.61487618,207.29,207.13,20.37063812]
[1735831215822,20.11965812,207.21,207.13,20.37063812]
[1735831216737,20.11965812,207.19,207.12,20.78648926]
[1735831217839,20.11965812,207.17,207.12,20.78648926]
[1735831218545,12.0651,207.21,207.12,20.78648926]
[1735831218546,20.11965812,207.15,207.12,20.78648926]
[1735831219546,20.11965812,207.17,207.12,20.78648926]
[1735831220038,20.11965812,207.19,207.12,20.78648926]
[1735831220339,20.11965812,207.17,207.12,20.78648926]
[1735831221133,20.11965812,207.15,207.12,20.78648926]
[1735831221436,12.0662,207.19,207.12,20.78648926]
[1735831221437,20.11965812,207.13,207.12,20.78648926]
[1735831223123,20.11965812,207.15,207.12,20.78648926]
[1735831223953,20.11965812,207.13,207.12,20.78648926]
[1735831224625,40.11965812,207.15,207.12,20.78648926]
[1735831225035,12.0662,207.19,207.12,20.78648926]
[1735831225036,20.11965812,207.19,207.12,20.78648926]
[1735831225237,25.11965812,207.3,207.14,20.11965812]
[1735831225238,20.11965812,207.21,207.14,20.11965812]
[1735831225434,20.11965812,207.23,207.15,6.1672]
[1735831225627,20.11965812,207.3,207.15,6.1672]
[1735831225628,20.11965812,207.21,207.15,6.1672]
[1735831226419,20.11965812,207.17,207.15,6.1672]
[1735831226753,20.11965812,207.17,207.13,1.666]
[1735831227048,20.11965812,207.15,207.12,20.78648926]
[1735831227360,20.11965812,207.13,207.12,20.78648926]
[1735831228316,20.0,207.2,207.12,20.78648926]
[1735831228652,20.11965812,207.14,207.12,20.78648926]
[1735831231532,12.0697,207.13,207.12,20.78648926]
[1735831232216,35.846584,207.13,207.12,20.78648926]
[1735831233020,12.0697,207.13,207.12,20.78648926]
[1735831233849,35.846584,207.13,207.12,20.78648926]
[1735831234056,12.0697,207.13,207.12,20.78648926]
[1735831235049,35.846584,207.13,207.12,20.78648926]
[1735831235449,12.0697,207.13,207.12,20.78648926]
[1735831235630,20.11965812,207.14,207.12,20.78648926]
[1735831236023,23.776884,207.13,207.12,20.78648926]
[1735831236221,36.39786293,207.13,207.12,20.78648926]
[1735831236723,36.39786293,207.13,207.08,8.45186559]
[1735831237053,36.39786293,207.13,207.0,500.0]
[1735831237054,12.62097893,207.02,207.0,500.0]
[1735831238732,12.62097893,207.04,207.0,500.0]
[1735831238941,12.62097893,207.06,207.0,500.0]
[1735831239737,12.62097893,207.08,207.0,512.62097893]
[1735831241863,12.62097893,207.1,207.03,7.6515]
[1735831242760,20.0,207.14,207.03,7.6515]
[1735831242957,12.62097893,207.1,207.03,7.6515]
[1735831244040,12.62097893,207.12,207.04,12.62097893]
[1735831244437,12.62097893,207.16,207.08,12.62097893]
[1735831244968,12.62097893,207.14,207.07,0.12549]
[1735831245339,12.62097893,207.13,207.06,12.62097893]
[1735831245559,12.62097893,207.13,207.05,13.34524032]
[1735831245876,24.68657893,207.2,207.05,13.34524032]
[1735831245877,12.62097893,207.12,207.05,12.62097893]
[1735831246161,12.62097893,207.13,207.05,12.62097893]
[1735831246350,20.18127513,207.14,207.07,20.18127513]
[1735831246743,20.18127513,207.14,207.06,20.18127513]
[1735831246966,20.18127513,207.14,207.07,20.18127513]
[1735831247266,20.18127513,207.14,207.06,20.18127513]
[1735831247637,20.18127513,207.12,207.05,20.18127513]
[1735831248465,20.18127513,207.12,207.04,20.18127513]
[1735831248865,20.18127513,207.12,207.05,20.18127513]
[1735831249470,20.18127513,207.13,207.06,20.18127513]
[1735831250369,20.18127513,207.07,207.03,7.6515]
[1735831250661,20.0,207.13,207.0,500.0]
[1735831250871,20.18127513,207.06,207.0,500.0]
[1735831253142,20.18127513,207.04,207.0,500.0]
[1735831254366,20.18127513,207.02,207.0,500.0]
[1735831255666,23.776884,207.01,207.0,500.0]
[1735831256358,35.853584,207.01,207.0,500.0]
[1735831256553,56.03485913,207.01,207.0,493.1563]
[1735831256776,56.28583913,207.01,207.0,465.56102992]
[1735831257069,56.03485913,207.01,207.0,465.56102992]
[1735831257368,36.104564,207.01,207.0,460.85062992]
[1735831257571,56.41132913,207.01,207.0,297.17992992]
[1735831257743,56.41132913,207.01,207.0,148.54296865]
[1735831257948,56.41132913,207.01,207.0,129.85486865]
[1735831258177,36.104564,207.01,207.0,125.72456865]
[1735831258348,36.104564,207.01,207.0,115.47716865]
[1735831259080,36.104564,207.01,207.0,112.62176865]
[1735831259380,36.104564,207.01,207.0,109.23406865]
[1735831259554,35.853584,207.01,207.0,109.23406865]
[1735831259749,12.0767,207.01,207.0,109.23406865]
[1735831260476,20.18127513,207.02,207.0,109.23406865]
[1735831260670,20.18127513,207.01,207.0,109.23406865]
[1735831261060,56.28583913,207.01,207.0,106.22386865]
[1735831261267,56.41132913,207.01,207.0,90.68356865]
[1735831261458,20.0,206.98,206.9,8.71891456]
[1735831261657,20.18127513,206.93,206.9,8.71891456]
[1735831262257,20.18127513,206.91,206.9,8.71891456]
[1735831262875,20.18127513,206.93,206.9,8.71891456]
[1735831264188,56.04065913,206.91,206.9,8.71891456]
[1735831264366,32.26377513,206.91,206.9,8.71891456]
[1735831264756,20.18127513,206.91,206.9,8.71891456]
[1735831265065,32.26377513,206.91,206.9,8.71891456]
[1735831265262,32.26377513,206.91,206.9,5.10601456]
[1735831265263,76.22193426,206.91,206.9,5.10601456]
[1735831265478,56.04065913,206.91,206.9,5.10601456]
[1735831265689,76.47291426,206.91,206.9,2.53981456]